Cogmind - Beta 15 @@@ ROGUE MODE // 2025.09.11 @ 19:39:39 Player: 1R0 Result: Destroyed by P-60 Hacker with Shock Rifle Performance ------------- Evolutions (4) 2000 Regions Visited (6) 1200 Robots Destroyed (29) 145 Value Destroyed (914) 914 Prototype IDs (3) 60 Alien Tech Used (0) 0 Bonus (745) 745 TOTAL SCORE: 5064 Bonus ------- High Alert Combat Kills 52 Follower Combat Kills 93 Met Imprinter 300 Was Imprinted 300 Cogmind --------- Core Integrity 0/850 Matter 62/300 Energy 100/100 System Corruption 0% Temperature Cool (0) Movement Core (700) Ox13 Location -6/Factory Parts ------- > --- POWER (2) -------- (None) > --- PROPULSION (4) --- (None) > --- UTILITY (4) ------ High-capacity Storage Unit Advanced Signal Interpreter > --- WEAPON (5) ------- (None) > --- INVENTORY (20) --- Improved Ion Engine Small Storage Unit Advanced Weight Redist. System Improved Sensor Array Improved Sensor Array Improved Targeting Computer Improved Light Armor Plating Thermal Shield Heavy Mace Peak State ------------ > --- POWER ------------ Ion Engine Heavy Ion Engine > --- PROPULSION ------- Carbon-fiber Leg Carbon-fiber Leg Carbon-fiber Leg Carbon-fiber Leg > --- UTILITY ---------- High-capacity Storage Unit Improved Sensor Array Advanced Signal Interpreter Hacking Drone Bay > --- WEAPON ----------- Assault Rifle Light Assault Rifle Light Assault Rifle Heavy Assault Rifle Autogun > --- INVENTORY -------- Improved Ion Engine Light Nuclear Core Advanced Treads Advanced Treads Advanced Treads Advanced Treads Small Storage Unit Advanced Weight Redist. System Improved Sensor Array Improved Sensor Array Improved Sensor Array Improved Targeting Computer Improved Light Armor Plating Thermal Shield Particle Cannon Heavy Mace [Rating: 45] Favorites ----------- Power Heavy Ion Engine Engine Heavy Ion Engine Power Core Light Nuclear Core Propulsion Carbon-fiber Leg Treads Light Treads Leg Carbon-fiber Leg Utility High-capacity Storage Unit Device Improved Sensor Array Storage High-capacity Storage Unit Processor Advanced Signal Interpreter Protection Improved Light Armor Plating Weapon Assault Rifle Energy Cannon Particle Cannon Ballistic Gun Assault Rifle Launcher Grenade Launcher Special Weapon RU-N14's Throwing Claymores Build | -11 -10 -9 -9 -7 -6 -6 ------- Run | Yrd Mat Mat Min Zio Pro Fac Slots Evolved 8 | . . 2 . . . 6 Power 1 | . . . . . . 1 Propulsion 2 | . . 2 . . . . Utility 2 | . . . . . . 2 Weapon 3 | . . . . . . 3 Parts Attached 34 | 7 1 12 1 1 1 11 Power 5 | 2 . 2 . . . 1 Engine 4 | 2 . 2 . . . . Core 1 | . . . . . . 1 Reactor . | . . . . . . . Propulsion 12 | 2 . 6 . . . 4 Treads 6 | 2 . . . . . 4 Leg 6 | . . 6 . . . . Wheel . | . . . . . . . Hover . | . . . . . . . Flight . | . . . . . . . Utility 7 | 1 . 2 . . . 4 Device 3 | . . 1 . . . 2 Storage 2 | 1 . 1 . . . . Processor 1 | . . . . . . 1 Hackware . | . . . . . . . Protection 1 | . . . . . . 1 Artifact . | . . . . . . . Weapon 10 | 2 1 2 1 1 1 2 Energy Gun . | . . . . . . . Energy Cannon 1 | . . 1 . . . . Ballistic Gun 7 | 2 . 1 1 . 1 2 Ballistic Cannon . | . . . . . . . Launcher 1 | . 1 . . . . . Special Weapon 1 | . . . . 1 . . Impact Weapon . | . . . . . . . Slashing Weapon . | . . . . . . . Piercing Weapon . | . . . . . . . Special Melee Weapon . | . . . . . . . Unidentified Prototypes 3 | . . 1 . 1 . 1 Parts Lost 24 | . 1 2 1 . . 20 Power 4 | . . 1 . . . 3 Propulsion 8 | . . . . . . 8 Utility 3 | . . . . . . 3 Weapon 9 | . 1 1 1 . . 6 Highest Loss Streak 13 | . 1 1 1 . . 13 To Critical Strikes 2 | . . . . . . 2 Average Backups 15 | 1 4 10 15 18 19 14 Power 2 | . . 1 3 3 3 1 Propulsion 3 | . . 3 4 4 4 3 Utility 5 | . 1 3 5 5 6 7 Weapon 4 | . 2 2 3 5 5 1 Tool/Special . | . . . . . . . Unused Backups 11 | . . 3 . . 1 7 Power 1 | . . . . . . 1 Propulsion . | . . . . . . . Utility 7 | . . 2 . . . 5 Weapon 3 | . . 1 . . 1 1 Tool/Special . | . . . . . . . Average Slot Usage (%) 92 | . 80 79 96 100 99 80 Engine 10 | . 14 9 11 11 11 9 Treads 3 | . 28 6 . . . 4 Leg 34 | . . 28 44 44 44 17 Device 9 | . . 6 11 11 11 10 Storage 10 | . 14 11 11 11 11 6 Ballistic Gun 19 | . 22 15 18 19 19 22 Special Weapon 1 | . . . . 2 2 . Peak Build Rating 45 | 6 6 24 24 32 32 45 Average Rating 24 | 3 5 15 23 26 27 37 On Entrance 16 | . 6 5 24 24 32 26 Naked Turns . | . . . . . . . Heaviest Build 68 | 14 15 53 53 59 59 68 Greatest Support 88 | 40 40 60 60 60 60 88 Greatest Overweight (x) 13 | . . 3 . . . 13 Average Overweight (x) . | . . . . . . . Largest Inventory Capacity 20 | 8 8 20 20 20 20 20 Average Capacity 18 | 6 8 15 20 20 20 20 Most Carried 20 | 5 8 15 17 20 20 18 Average Carried 15 | 1 4 10 15 18 19 13 Final Capacity 20 | 8 8 20 20 20 20 20 Final Carried 20 | 1 8 15 16 20 19 9 Class Distribution -------------------- 89% | Mutant 5% | Scavenger-Skirmisher 3% | Scavenger-Tank Dominant Class ---------------- Mutant | -10/Materials Mutant | -9/Materials Mutant | -9/Mines Mutant | -7/Zion Mutant | -6/Proximity Caves Scavenger-Skirmisher | -6/Factory Resources | -11 -10 -9 -9 -7 -6 -6 ----------- Run | Yrd Mat Mat Min Zio Pro Fac Matter Collected 780 | 56 253 169 14 151 126 11 Remotely . | . . . . . . . Salvage Created 1029 | . 342 274 43 . 86 284 Parts 60 | . 27 16 6 . 2 9 Haulers Intercepted . | . . . . . . . Recyclers Shooed 3 | . . 1 . . . 2 Parts Field Recycled . | . . . . . . . Retrieved Matter . | . . . . . . . Parts Self-Destructed 3 | . . . . . 3 . Prevented 5 | . . . . . 5 . Kills | -11 -10 -9 -9 -7 -6 -6 ------- Run | Yrd Mat Mat Min Zio Pro Fac Combat Hostiles Destroyed 20 | . 7 6 3 . 2 2 Guns 15 | . 3 6 3 . 1 2 AOE 5 | . 4 . . . 1 . Classes Destroyed 9 | . 5 1 . . . 3 Worker 2 | . 1 . . . . 1 Builder 3 | . 2 . . . . 1 Recycler 2 | . 1 . . . . 1 Mechanic 1 | . . . . . . 1 Drone 1 | . . . . . . 1 Watcher 1 | . . . . . . 1 Swarmer 6 | . 3 . 3 . . . Grunt 11 | . 4 5 . . 1 1 Sentry 3 | . . 1 . . 1 1 Best Kill Streak 8 | . 8 3 3 . 2 5 Combat Bots Only 5 | . 5 3 3 . 2 1 Max Kills in Single Turn 3 | . 3 1 1 . 1 2 Gunslinging . | . . . . . . . Exploded 2 | . 2 . . . 1 . Melee . | . . . . . . . Uniques/NPCs Destroyed . | . . . . . . . Combat | -11 -10 -9 -9 -7 -6 -6 -------- Run | Yrd Mat Mat Min Zio Pro Fac Hostile Shots Fired 568 | . 33 58 11 . 70 396 Missed 205 | . 4 18 6 . 36 141 Hits 363 | . 29 40 5 . 34 255 Projectile 363 | . 29 40 5 . 34 255 Critical Strikes 7 | . . 3 . . . 4 Damage Taken 4147 | . 391 539 44 . 296 2877 Core 1088 | . 104 101 . . 28 855 Absorbed by Shields . | . . . . . . . Regen/Repaired (Parts) 254 | . . . . 254 . . Core Remaining (%) 75 | 100 58 . . . 67 . Volleys Fired 102 | . 18 45 4 . 17 18 Largest 5 | . 2 2 2 . 2 5 Hottest 131 | . 50 88 40 . 40 131 Shots Fired 212 | . 32 59 6 . 34 81 Gun 201 | . 28 57 6 . 31 79 Cannon 4 | . . 2 . . . 2 Launcher 4 | . 4 . . . . . Special 3 | . . . . . 3 . Kinetic 201 | . 28 57 6 . 31 79 Thermal 4 | . . 2 . . . 2 Explosive 7 | . 4 . . . 3 . Electromagnetic . | . . . . . . . Robot Hit Streak 9 | . 8 9 2 . 9 7 Robot Miss Streak 8 | . 1 2 3 . 8 4 Penetration Max . | . . . . . . . Secondary Targets 2 | . 1 . 1 . . . Max Gunslinging Chain 1 | . 1 . 1 . . . Shots Hit Robots 111 | . 18 39 3 . 14 37 Core Hits 60 | . 19 12 3 . 8 18 Critical Kills . | . . . . . . . Critical Parts Destroyed 2 | . . 2 . . . . Critical Strikes 3 | . . 2 . . 1 . Destroy 2 | . . 2 . . . . Sever 1 | . . . . . 1 . Melee Attacks . | . . . . . . . Impact . | . . . . . . . Slashing . | . . . . . . . Piercing . | . . . . . . . Sneak Attacks . | . . . . . . . Combat Hostiles . | . . . . . . . Follow-up Attacks . | . . . . . . . Damage Inflicted 2765 | . 516 536 35 . 591 1087 Guns 1476 | . 278 513 35 . 165 485 Cannons 61 | . . 21 . . . 40 Explosions 1159 | . 238 . . . 359 562 Melee . | . . . . . . . Ramming 2 | . . 2 . . . . Kinetic 1476 | . 278 513 35 . 165 485 Thermal 61 | . . 21 . . . 40 Explosive 1159 | . 238 . . . 359 562 Electromagnetic . | . . . . . . . Impact . | . . . . . . . Slashing 67 | . . . . . 67 . Piercing . | . . . . . . . Highest Corruption . | . . . . . . . Average Corruption . | . . . . . . . Corruption Purged . | . . . . . . . Corruption Blocked . | . . . . . . . Overload Shots . | . . . . . . . Overflow Damage 107 | . . . . . 18 89 Projectiles 1 | . . . . . 1 . Explosions 106 | . . . . . 17 89 Melee . | . . . . . . . Knockbacks . | . . . . . . . Impact . | . . . . . . . Kinetic . | . . . . . . . Secondary . | . . . . . . . Self-Inflicted Damage 246 | . 87 . . . . 159 Shots 6 | . 3 . . . . 3 Rammed . | . . . . . . . Targets Rammed 1 | . . 1 . . . . Kicked 1 | . . 1 . . . . Crushed . | . . . . . . . Highest Temperature 245 | . 6 81 . . 10 245 Average Temperature 76 | . 3 33 . . 10 94 Received Heat Transfer 1083 | . 138 345 . . 21 579 Siege Activations . | . . . . . . . Martial Activations . | . . . . . . . Shielding Activations . | . . . . . . . Robots Disrupted . | . . . . . . . Combat Hostiles . | . . . . . . . Robots Corrupted . | . . . . . . . Combat Hostiles . | . . . . . . . Parts Fried . | . . . . . . . Impact Corruptions . | . . . . . . . Robots Melted . | . . . . . . . Combat Hostiles . | . . . . . . . Parts Melted . | . . . . . . . Heat Transferred 111 | . . 37 . . . 74 Parts Sabotaged . | . . . . . . . Parts Stolen . | . . . . . . . Parts Stripped . | . . . . . . . Power Chain Reactions . | . . . . . . . Alert | -11 -10 -9 -9 -7 -6 -6 ------- Run | Yrd Mat Mat Min Zio Pro Fac Maximum Alert Level 3 | . . . . . . 3 Low Security (%) 63 | 100 100 100 100 . . . Level 1 . | . . . . . . . Level 2 . | . . . . . . . Level 3 36 | . . . . . . 100 Level 4 . | . . . . . . . Level 5 . | . . . . . . . High Security . | . . . . . . . Max Security . | . . . . . . . Peak Influence 1091 | . 167 60 60 . . 1091 Initial 900 | . . 53 . . . 900 Average 330 | . 57 27 43 . . 842 Influence Increases 1873 | . 217 150 70 . 148 1288 Destroy 0b10 Robot/C 440 | . 140 120 60 . 80 40 Destroy 0b10 Robot/NC 50 | . 20 . . . 5 25 Destroy Leader 92 | . 30 30 10 . 10 12 Allied During Kill 38 | . . . . . 38 . Disable Machine 255 | . . . . . . 255 Destroy Structure 83 | . 27 . . . . 56 Advance Influence 900 | . . . . . . 900 Lose Combat Pursuer 15 | . . . . . 15 . Influence Decreases 1173 | . 90 277 30 40 148 588 Entered New Map 114 | . . 74 . 40 . . Time Decay 679 | . 80 193 20 . 148 238 Search Patrol Dispatched 150 | . . . . . . 150 Lost Part 230 | . 10 10 10 . . 200 Squads Dispatched 7 | . 1 . . . . 6 Investigation . | . . . . . . . Extermination 1 | . . . . . . 1 Reinforcement 3 | . 1 . . . . 2 Assault . | . . . . . . . Garrison 3 | . . . . . . 3 Intercept . | . . . . . . . Searches Triggered 1 | . . . . . . 1 Construction Impeded . | . . . . . . . Haulers Reinforced 1 | . . . . . . 1 Active Scanning Responses . | . . . . . . . Cargo Convoy Interrupts . | . . . . . . . Stealth | -11 -10 -9 -9 -7 -6 -6 --------- Run | Yrd Mat Mat Min Zio Pro Fac Distress Signals 2 | . . 2 . . . . Communications Jammed . | . . . . . . . Distress Signals . | . . . . . . . Times Spotted 39 | . 10 9 3 . 7 10 Peak Tracking Total 7 | . 4 4 3 . 4 7 Tactical Retreats 1 | . . . . . 1 . Traps | -11 -10 -9 -9 -7 -6 -6 ------- Run | Yrd Mat Mat Min Zio Pro Fac Traps Triggered . | . . . . . . . Indirectly . | . . . . . . . Trap Hack Attempts . | . . . . . . . Triggered . | . . . . . . . Disarmed . | . . . . . . . Reprogrammed . | . . . . . . . Reused . | . . . . . . . Traps Extracted . | . . . . . . . Installed . | . . . . . . . Triggered . | . . . . . . . Machines | -11 -10 -9 -9 -7 -6 -6 ---------- Run | Yrd Mat Mat Min Zio Pro Fac Machines Disabled 17 | . . . . . . 17 Max in Single Turn 4 | . . . . . . 4 Machines Repaired . | . . . . . . . Machines Dismantled . | . . . . . . . Machines Sabotaged . | . . . . . . . Overloaded Fab Kills . | . . . . . . . Hacking | -11 -10 -9 -9 -7 -6 -6 --------- Run | Yrd Mat Mat Min Zio Pro Fac Machines Accessed . | . . . . . . . Terminals . | . . . . . . . Fabricators . | . . . . . . . Repair Stations . | . . . . . . . Recycling Units . | . . . . . . . Scanalyzers . | . . . . . . . Garrison Access . | . . . . . . . Total Hacks . | . . . . . . . Successful . | . . . . . . . Failed . | . . . . . . . Catastrophic . | . . . . . . . Database Lockouts . | . . . . . . . Manual 1 | . . . . 1 . . Terminals . | . . . . . . . Fabricators . | . . . . . . . Repair Stations . | . . . . . . . Recycling Units . | . . . . . . . Scanalyzers . | . . . . . . . Garrison Access . | . . . . . . . Terminal Hacks . | . . . . . . . Fabricator Hacks . | . . . . . . . Repair Station Hacks . | . . . . . . . Recycling Unit Hacks . | . . . . . . . Scanalyzer . | . . . . . . . Garrison Access Hacks . | . . . . . . . Unauthorized Hacks . | . . . . . . . Terminals . | . . . . . . . Fabricators . | . . . . . . . Repair Stations . | . . . . . . . Recycling Units . | . . . . . . . Scanalyzers . | . . . . . . . Garrison Access . | . . . . . . . Data Cores Recovered . | . . . . . . . Used . | . . . . . . . Hacking Detections . | . . . . . . . Full Trace Events . | . . . . . . . Feedback Events . | . . . . . . . Feedback Blocked . | . . . . . . . Robot Schematics Acquired 3 | . . . . 3 . . Robots Built . | . . . . . . . Authchips . | . . . . . . . Time . | . . . . . . . Total Robot Build Rating . | . . . . . . . Part Schematics Acquired 15 | . . . . 15 . . Parts Built . | . . . . . . . Authchips . | . . . . . . . Time . | . . . . . . . Total Part Build Rating . | . . . . . . . Parts Repaired . | . . . . . . . Time . | . . . . . . . Parts Recycled . | . . . . . . . Recycled Matter . | . . . . . . . Retrieved Matter . | . . . . . . . Retrieved Components . | . . . . . . . Parts Scanalyzed . | . . . . . . . Part Schematics Acquired . | . . . . . . . Parts Damaged . | . . . . . . . Bothacking | -11 -10 -9 -9 -7 -6 -6 ------------ Run | Yrd Mat Mat Min Zio Pro Fac Used RIF Installer . | . . . . . . . Robots Hacked . | . . . . . . . Non-combat . | . . . . . . . Combat . | . . . . . . . Robot Hacks Applied . | . . . . . . . Relay Couplers Released . | . . . . . . . Fabnet Peak Effective % . | . . . . . . . Robots Rewired . | . . . . . . . Allies Hacked . | . . . . . . . Hacks Repelled . | . . . . . . . Allies | -11 -10 -9 -9 -7 -6 -6 -------- Run | Yrd Mat Mat Min Zio Pro Fac Total Allies 4 | . . . . 4 . . Largest Group 4 | . . . . 4 4 . Highest-Rated Group 157 | . . . . 157 157 . Highest-Rated Ally 40 | . . . . 40 40 . Total Orders . | . . . . . . . Ally Attacks 24 | . . . . . 24 . Total Damage 519 | . . . . . 519 . Kills 3 | . . . . . 3 . Allies Corrupted . | . . . . . . . Allies Melted . | . . . . . . . Intel | -11 -10 -9 -9 -7 -6 -6 ------- Run | Yrd Mat Mat Min Zio Pro Fac Active Infowar (turns) 3071 | . . 264 48 1618 661 480 Sensors 3071 | . . 264 48 1618 661 480 Robot Analysis Total . | . . . . . . . Derelict Logs Recovered 3 | . . . . 2 1 . Drone Launches 1 | . . . . . . 1 Drone Recoveries . | . . . . . . . Exploration | -11 -10 -9 -9 -7 -6 -6 ------------- Run | Yrd Mat Mat Min Zio Pro Fac Turns Passed 3679 | 58 317 467 48 1618 661 510 Spaces Moved 2535 | 32 140 248 30 1344 508 233 Core 15 | 11 . 2 . . . 2 Treads 275 | 21 140 45 . . . 69 Legs 2245 | . . 201 30 1344 508 162 Wheels . | . . . . . . . Hover . | . . . . . . . Flight . | . . . . . . . Fastest Speed 50 | 50 160 120 120 120 120 145 Average Speed 129 | 122 160 131 120 120 120 187 Slowest Speed 700 | 160 160 200 120 120 120 700 Overloaded Moves . | . . . . . . . Propulsion Burnouts . | . . . . . . . Robots Hopped 3 | . . . . 3 . . Potential Cave-ins . | . . . . . . . Cave-ins Triggered . | . . . . . . . Exploration Rate (%) 35 | 3 28 20 13 89 87 8 Regions Visited 6 Branch Regions 3 Pre-discovered Areas . | . . . . . . . Known Exits Taken . | . . . . . . . Unknown Exits Taken 6 | 1 1 1 1 1 1 . Scrap Searched 3 | . . . . 3 . . Spaces Dug . | . . . . . . . Terrain Destroyed 124 | . 32 . . . 32 60 Melee . | . . . . . . . Projectile . | . . . . . . . AOE 124 | . 32 . . . 32 60 Terrain Rammed . | . . . . . . . Walls Destroyed . | . . . . . . . Machines Disabled . | . . . . . . . Actions | -11 -10 -9 -9 -7 -6 -6 --------- Run | Yrd Mat Mat Min Zio Pro Fac Total 2764 | 51 201 333 36 1345 528 270 Wait 45 | 6 36 . . . 1 2 Move 2523 | 31 139 247 29 1337 507 233 Hop 3 | . . . . 3 . . Pick Up 43 | 6 7 20 2 4 1 3 Fast Attach 1 | 1 . . . . . . Attach 30 | 5 . 10 1 . 1 13 Detach . | . . . . . . . Swap 7 | 1 1 3 . 1 . 1 Drop 9 | 1 . 7 . . 1 . Fire 102 | . 18 45 4 . 17 18 Melee . | . . . . . . . Ram . | . . . . . . . Kick 1 | . . 1 . . . . Crush . | . . . . . . . Escape Stasis . | . . . . . . . Rewire . | . . . . . . . Trap . | . . . . . . . Miscellaneous . | . . . . . . . Route ------- -11/Scrapyard -10/Materials -9/Materials -9/Mines (discovered 2 exits: [*Mat] / *Zio) -7/Zion -6/Proximity Caves -6/Factory (discovered 2 exits: Fac / Low) History --------- Turn | Location | Event 37 | -11/Scrapyard | Discovered new exit (range 15) 59 | -11/Scrapyard | Entered Materials 318 | -10/Materials | Build established: Mutant 350 | -10/Materials | Discovered new exit (range 6) 376 | -10/Materials | Entered another Materials area 376 | -9/Materials | Evolved 2 slots: Propulsion x2 834 | -9/Materials | Discovered new exit (range 9) 843 | -9/Materials | Entered Mines 874 | -9/Mines | Discovered new exit (range 9) 878 | -9/Mines | A Derelict revealed a hidden shortcut to a safe place 891 | -9/Mines | Entered Zion 911 | -7/Zion | Given the Hacking Drone Bay 927 | -7/Zion | Found Prototype Device 1094 | -7/Zion | Visited the Megawrench Repair Shop 1094 | -7/Zion | Megawrench repaired 8 parts 1330 | -7/Zion | Met Imprinter 1354 | -7/Zion | Imprinted 1357 | -7/Zion | Declared Zion's savior 2147 | -7/Zion | Found Prototype Special Weapon 2148 | -7/Zion | Identified RU-N14's Throwing Claymores 2151 | -7/Zion | Found RU-N14's Throwing Claymores 2487 | -7/Zion | Discovered new exit (range 10) 2509 | -7/Zion | Entered Proximity Caves 2509 | -6/Proximity Caves | Accompanied by 4 allies 2651 | -6/Proximity Caves | Attracted the attention of an 0b10 checkpoint 2653 | -6/Proximity Caves | Spotter reported a threat 2717 | -6/Proximity Caves | Spotter reported a threat 2851 | -6/Proximity Caves | Spotter reported a threat 2878 | -6/Proximity Caves | Learned 12 Factory zone layouts 2882 | -6/Proximity Caves | Spotted B-75 Beast 2904 | -6/Proximity Caves | Spotter reported a threat 2916 | -6/Proximity Caves | Allies destroyed B-75 Beast 2957 | -6/Proximity Caves | Spotter reported a threat 2990 | -6/Proximity Caves | Spotter reported a threat 3043 | -6/Proximity Caves | Spotter reported a threat 3135 | -6/Proximity Caves | Spotter reported a threat 3153 | -6/Proximity Caves | Discovered new exit (range 13) 3170 | -6/Proximity Caves | Entered Factory 3170 | -6/Factory | Evolved 6 slots: Power x1, Utility x2, Weapon x3 3171 | -6/Factory | Identified exit to Lower Caves 3171 | -6/Factory | Identified Hacking Drone Bay 3172 | -6/Factory | Identified exit to Factory 3427 | -6/Factory | Garrison activated, responded to threat 3520 | -6/Factory | Search patrols dispatched 3583 | -6/Factory | Lost 13 parts (2p3n2u6w) 3667 | -6/Factory | Core integrity fell below 50% 3676 | -6/Factory | Core integrity fell below 20% 3680 | -6/Factory | Destroyed by P-60 Hacker with Shock Rifle Last Messages --------------- 03581_ U-05 Engineer lays Concrete. 03584_ ALERT: Hostiles spotted, dispatching reinforcements to Terminal F010. 03599_ Detecting system override signal. 03602_ Slug penetrates Nuclear Reactor. 03602_ Penetrated by Slug. 03628_ Slug penetrates Nuclear Reactor. 03629_ ALERT: Cargo convoy en route, clear transfer corridor. 03633_ Adv. Treads destroyed. 03644_ Slug penetrates Wall. 03647_ Adv. Treads destroyed. 03651_ Slug penetrates Wall. 03660_ Adv. Treads destroyed. 03663_ Lgt. Nuclear Core destroyed. 03666_ Adv. Treads destroyed. 03668_ Slug penetrates Assembly Bed. 03669_ ALERT: Security rotation in progress. 03670_ Critical hit (Burn: +37). 03675_ Imp. Sensor Array destroyed. 03678_ Penetrated by Slug. Map ----- +----------------------------------------------------+ | | | ?????????????????????????????????????????????????? | | ?????????????????????????????????????????????????? | | ?????????????????????????????????????????????????? | | ?????????????????????????????????????????????????? | | ?????????????????????????????????????????????????? | | ?????????????????????????????????????????????????? | | ?????????????????????????????????????????????????? | | ?????????????????????????????????????????????????? | | ?????????????????????????????????????????????????? | | ?????????????????????????????????????????????????? | | ?????????????????????????????????????????????????? | | ???????????????????????????????????###+######????? | | ???????????????????????????????????# ?????? | | ???????????????????????????????????# ##??????? | | ??????????????????????############## T#??????? | | ??????????????????????# " #??????? | | ??????????????????????# """" """" # ######??? | | ??????????????????????# """" """" # ##"""#??? | | ??????????????????????# """" """" # ##"Y"###? | | ??????????????????????# """" """" # #? | | ??????????????????????# """" """" # #? | | ??????????????????????# """" """" + """ #? | | ??????????????????????# p g h # """ #? | | ??????????????????????# YY# """ #? | | ??????????????????????# @ g ##### #? | | ??????????????????????# g #???# """ ## | | ??????????????????????# ] #???# """ ^ | | ??????????????????????###############??# """ | | ??????????????????????????????? #### ^ | | ????????????????????????????????? " + | | ??????????????????????????????????? ####### | | ??????????????????????????????????? #?????# ## | | ??????????????????????????????????? #?????# # | | ??????????????????????????????????? #?????# # | | ???????????????????????????????????##?????# # | | ???????????????????????????????????######## / | | ??????????????????????????????????? + # | | ???????????????????????????????????""""" # # | | ???????????????????????????????????""""" # # | | ???????????????????????????????????""""" # ## | | ???????????????????????????????????""""" # | | ??????????????????????????????????? # | | ???????????????????????????????????""""" # | | ???????????????????????????????????""""" # | | ???????????????????????????????????""""" # | | ???????????????????????????????????""""" ######## | | ??????????????????????????????????? #???# | | ??????????????????????????????????? #???# | | ???????????????????????????????????########???# | +----------------------------------------------------+ Best States ------------- Heat Dissipation 37 Energy Generation 19 Energy Capacity 430 Matter Stores 300 Matter Capacity 300 Sight Range 16 Robot Scan Range 15 Terrain Scan Density 10 Armor Coverage 150 Evasion (%) 55 Recoil Reduction 4 Item Schematics ----------------- Imp. Medium Armor Plating | -7/Zion | Archive Flexi-carbon Leg | -7/Zion | Archive Hvy. Laser | -7/Zion | Archive Imp. Particle Charger | -7/Zion | Archive Imp. Carbon-fiber Leg | -7/Zion | Archive Imp. Recalibrator | -7/Zion | Archive Field Propulsion Drive | -7/Zion | Archive Arc Projector | -7/Zion | Archive Lrn. Missile Launcher | -7/Zion | Archive Imp. EM Pulse Cannon | -7/Zion | Archive Imp. Cryofiber Web | -7/Zion | Archive Imp. Hardlight Generator | -7/Zion | Archive Xenon Bombardment Thruster | -7/Zion | Archive Med. Treads | -7/Zion | Archive Stasis Canceller | -7/Zion | Archive Robot Schematics ------------------ A-02 Transporter | -7/Zion | Archive L-41 Fighter | -7/Zion | Archive S-27 Virus | -7/Zion | Archive Fabricated ------------ Nothing Repaired ---------- Nothing Alien Tech Used ----------------- None Achievements -------------- I Spy I'm Back, Baby! Robot Respite The One Challenges ------------ None Game ------ Seed InterceptDeepGun Manual? 0 Play Time 00:25:27 Cumulative 4.0 hours Start 2025.09.11 @ 19:15:29 End 2025.09.11 @ 19:39:39 Sessions 1 Manual Loads 0 Difficulty Rogue Special Mode None Game No. 17 Rogue 14 Adventurer 3 Explorer 0 Win Type - Total 0 Types 0/0/0/0/0/0/0/0/0/0 Lore% 11 Gallery% 9 Achievement% 11 Wizard Run 0 Options --------- Layout 0 ASCII 0 Keyboard 0 Movement Mouse Keybinds 0 Fullscreen 2 Font 24/Smallcaps Map View 76x50 Zoom Use 78% Tactical HUD 1 Map Filters NONE Filters NONE Steam 1 RUN: c7fb91fd-a53e-47f8-a817-492563610e3d